bitfinex-derivatives/quotes_SOLF0:USTF0_20250829
["timestamp","ask_amount","ask_price","bid_price","bid_amount"]
[1756460482508,12.03154721,206.91,206.78,11.84467137]
[1756460482819,7.86,206.9,206.79,1.69103228]
[1756460483509,0.03319968,206.87,206.78,7.82]
[1756460483713,0.03319968,206.87,206.78,9.51103228]
[1756460483911,0.03319968,206.87,206.79,1.69103228]
[1756460484523,7.86,206.86,206.79,1.69103228]
[1756460484713,7.86,206.86,206.79,1.69417885]
[1756460484914,43.4,206.86,206.76,1.69417885]
[1756460485223,7.86,206.85,206.75,1.69417885]
[1756460485524,7.86,206.85,206.76,1.69417885]
[1756460485719,0.03710237,206.82,206.75,1.69417885]
[1756460486018,0.03710237,206.82,206.76,1.69417885]
[1756460486313,0.03710237,206.82,206.78,7.82]
[1756460486520,0.03710237,206.82,206.79,9.51417885]
[1756460486718,0.03710237,206.82,206.79,7.82]
[1756460486914,0.03710237,206.82,206.79,9.51417885]
[1756460487109,0.03710237,206.82,206.78,1.69417885]
[1756460487318,0.03710237,206.82,206.76,4.02467137]
[1756460487515,0.03710237,206.82,206.77,9.51619318]
[1756460487720,0.03710237,206.82,206.78,1.69619318]
[1756460488215,0.03710237,206.82,206.79,62.0]
[1756460488721,0.03710237,206.82,206.73,5.39930105]
[1756460488722,7.89710237,206.82,206.75,4.02467137]
[1756460488925,7.89710237,206.82,206.76,1.69650748]
[1756460489116,7.89710237,206.82,206.77,1.69650748]
[1756460489315,7.89710237,206.82,206.76,1.69650748]
[1756460489512,7.89710237,206.82,206.77,1.69650748]
[1756460489818,7.89710237,206.82,206.76,1.69650748]
[1756460490014,7.89710237,206.82,206.77,1.69650748]
[1756460490212,7.89710237,206.82,206.76,1.69650748]
[1756460490411,7.89710237,206.82,206.77,1.69650748]
[1756460490621,7.89710237,206.82,206.76,1.69650748]
[1756460490815,7.89710237,206.82,206.77,9.51650748]
[1756460491021,7.89710237,206.82,206.77,7.82]
[1756460491222,7.89710237,206.82,206.77,1.69650748]
[1756460491523,7.89710237,206.82,206.76,1.69650748]
[1756460491822,7.89710237,206.82,206.76,62.0]
[1756460492218,0.03710237,206.82,206.73,4.02467137]
[1756460492522,7.86,206.81,206.71,4.02467137]
[1756460492718,7.86,206.81,206.72,1.69905486]
[1756460492719,85.5,206.8,206.72,1.69905486]
[1756460493022,85.5,206.8,206.73,1.69905486]
[1756460493322,85.5,206.8,206.72,1.69905486]
[1756460493520,85.5,206.8,206.71,4.02467137]
[1756460493521,0.03578846,206.79,206.73,1.69905486]
[1756460493720,7.86,206.78,206.72,1.69905486]
[1756460493920,7.86,206.78,206.71,1.69956233]
[1756460494120,7.86,206.78,206.7,4.02467137]
[1756460494323,7.86,206.78,206.71,1.70009939]
[1756460494626,7.86,206.78,206.72,1.70009939]
[1756460494820,7.86,206.78,206.71,1.70008683]
[1756460495124,7.86,206.78,206.72,1.70008683]
[1756460495326,7.86,206.78,206.71,62.0]
[1756460495524,7.86,206.78,206.72,1.70098127]
[1756460495716,7.86,206.78,206.68,11.85336684]
[1756460495922,7.86,206.78,206.69,1.70115893]
[1756460496226,7.86,206.78,206.7,1.70115893]
[1756460496432,7.86,206.78,206.68,11.85336684]
[1756460496725,7.86,206.78,206.69,1.70174278]
[1756460496930,0.03578846,206.79,206.72,4.03336684]
[1756460497116,0.03578846,206.79,206.71,7.21]
[1756460497117,0.03578846,206.79,206.73,5.73510962]
[1756460497320,100.24,206.8,206.74,8.91174278]
[1756460497525,107.67,206.8,206.74,7.21]
[1756460497721,0.03571011,206.78,206.74,7.21]
[1756460498223,0.03571011,206.78,206.75,1.70337393]
[1756460498423,7.46571011,206.78,206.73,4.03336684]
[1756460498622,7.46571011,206.78,206.74,1.70337393]
[1756460498826,7.46571011,206.78,206.73,62.0]
[1756460499022,7.46571011,206.78,206.74,1.70342483]
[1756460499223,7.46571011,206.78,206.73,73.24336684]
[1756460499425,7.46571011,206.78,206.74,1.70445686]
[1756460499625,7.46571011,206.78,206.73,11.24336684]
[1756460499826,7.43,206.77,206.74,1.70445686]
[1756460500027,7.43,206.77,206.7,4.03336684]
[1756460500330,7.43,206.77,206.71,1.70464747]
[1756460500526,7.46571011,206.78,206.72,1.70464747]
[1756460500730,7.43,206.76,206.68,4.03336684]
[1756460501032,7.43,206.76,206.69,1.7045073]
[1756460501221,7.43,206.76,206.66,4.03336684]
[1756460501528,7.43,206.76,206.67,1.70428241]
[1756460501826,7.43,206.72,206.65,4.03336684]
[1756460502025,7.43,206.72,206.66,1.70430939]
[1756460502225,19.46154721,206.73,206.64,11.24336684]
[1756460502428,19.46154721,206.73,206.65,1.70358795]
[1756460502726,39.58,206.72,206.66,1.70358795]
[1756460502923,39.58,206.72,206.64,4.03336684]
[1756460503119,39.58,206.72,206.65,1.70358795]
[1756460503323,39.58,206.72,206.66,1.70358795]
[1756460503524,39.58,206.72,206.64,4.03336684]
[1756460503723,39.58,206.72,206.65,1.70292369]
[1756460503925,39.58,206.72,206.66,1.70292369]
[1756460504225,39.58,206.72,206.64,4.03336684]
[1756460504226,39.58,206.72,206.65,1.70231144]
[1756460504425,39.58,206.72,206.66,1.70231144]
[1756460504625,39.58,206.72,206.65,1.70231144]
[1756460504828,39.58,206.72,206.66,1.70231144]
[1756460505027,39.58,206.72,206.65,1.70231144]
[1756460505224,39.58,206.72,206.66,1.70231144]
[1756460505424,39.58,206.72,206.65,1.70231144]
[1756460505627,39.58,206.72,206.66,1.70231144]
[1756460505929,39.58,206.72,206.65,1.70196107]
[1756460506125,39.58,206.72,206.66,1.70196107]
[1756460506425,39.58,206.72,206.65,1.70165598]
[1756460506620,39.58,206.72,206.63,4.03336684]
[1756460506821,39.58,206.72,206.64,1.70145662]
[1756460507031,39.58,206.72,206.65,1.70145662]
[1756460507224,0.03550248,206.7,206.64,1.70125092]
[1756460507421,7.46550248,206.7,206.64,1.70125092]
[1756460507625,7.46550248,206.7,206.63,1.70125092]
[1756460507821,7.46550248,206.7,206.64,1.70125092]
[1756460508018,7.46550248,206.7,206.63,1.70125092]
[1756460508226,7.46550248,206.7,206.64,1.70125092]
[1756460508424,7.46550248,206.7,206.63,1.70125092]
[1756460508628,7.46550248,206.7,206.64,1.70125092]
[1756460508831,7.46550248,206.7,206.63,1.70125092]
[1756460509028,7.46550248,206.7,206.64,1.70125092]
[1756460509224,7.46550248,206.7,206.63,1.70125092]
[1756460511233,7.46550248,206.7,206.62,62.0]
[1756460512430,0.03550248,206.7,206.63,8.90878345]
[1756460512824,0.03550248,206.7,206.62,62.0]
[1756460513024,7.43,206.69,206.62,62.0]
[1756460513229,12.03154721,206.68,206.59,7.21]
[1756460513429,12.03154721,206.68,206.59,8.90840835]
[1756460514035,0.03114561,206.66,206.59,8.90840835]
[1756460514335,0.03114561,206.66,206.59,7.21]
[1756460515935,0.03114561,206.66,206.61,7.21]
[1756460516133,0.03114561,206.66,206.62,62.0]
[1756460516334,0.03114561,206.66,206.63,7.21]
[1756460516736,0.03114561,206.66,206.64,7.21]
[1756460517333,0.03114561,206.66,206.63,1.69762016]
[1756460517936,0.03114561,206.66,206.64,7.21]
[1756460518136,0.03114561,206.66,206.63,1.69762016]
[1756460518440,0.03114561,206.66,206.64,7.21]
[1756460519145,0.03114561,206.66,206.63,1.69762016]
[1756460519337,0.03114561,206.66,206.63,1.69913401]
[1756460519733,0.03114561,206.66,206.64,7.21]
[1756460520129,0.03114561,206.66,206.63,1.6991339]
[1756460520330,7.43,206.65,206.59,7.21]
[1756460520531,0.03114561,206.66,206.6,1.69989109]
[1756460520735,0.03114561,206.66,206.62,7.21]
[1756460520936,0.03114561,206.66,206.6,1.69989109]
[1756460520937,7.46114561,206.66,206.6,1.69989109]
[1756460521237,7.46114561,206.66,206.61,8.90989109]
[1756460521541,7.46114561,206.66,206.61,7.21]
[1756460521741,7.46114561,206.66,206.61,8.90989109]
[1756460521940,7.46114561,206.66,206.61,7.21]
[1756460522144,7.46114561,206.66,206.62,1.69989109]
[1756460523138,7.46114561,206.66,206.61,7.21]
[1756460523338,7.46114561,206.66,206.62,1.70086862]
[1756460523541,7.46114561,206.66,206.61,7.21]
[1756460523742,7.46114561,206.66,206.62,1.70089404]
[1756460523940,7.46114561,206.66,206.61,7.21]
[1756460524247,7.46114561,206.66,206.62,1.70089404]
[1756460524443,7.46114561,206.66,206.63,1.70089404]
[1756460524644,7.43,206.65,206.61,11.24336684]
[1756460524844,7.43,206.65,206.62,1.70204146]
[1756460525145,7.43,206.65,206.63,1.70204146]
[1756460525443,7.21724554,206.64,206.61,11.24336684]
[1756460525639,0.03114561,206.66,206.63,7.21]
[1756460525844,0.03114561,206.66,206.65,7.21]
[1756460526044,0.03114561,206.66,206.65,8.91276437]
[1756460526944,0.03114561,206.66,206.65,6.22824664]
[1756460527145,7.24839115,206.66,206.65,6.22824664]
[1756460527346,0.03114561,206.66,206.65,6.22824664]
[1756460528339,0.03114561,206.66,206.65,10.27409944]
[1756460528745,0.03114561,206.66,206.65,10.27739045]
[1756460529956,0.03114561,206.66,206.65,6.22824664]
[1756460530256,0.03114561,206.66,206.65,10.27739045]
[1756460531459,81.12708131,206.8,206.66,7.4]
[1756460531662,93.15296197,206.8,206.71,4.04941771]
[1756460531954,93.15296197,206.8,206.72,6.22824664]
[1756460532160,93.15296197,206.8,206.73,6.22824664]
[1756460532354,93.15296197,206.8,206.74,4.52548227]
[1756460532558,73.37708131,206.8,206.75,6.2320725]
[1756460532753,73.37708131,206.8,206.76,6.23177974]
[1756460533062,73.37708131,206.8,206.77,6.23177974]
[1756460533260,81.12708131,206.8,206.78,4.52548227]
[1756460533455,81.12708131,206.8,206.79,4.52548227]
[1756460534860,73.85708131,206.8,206.75,0.03236022]
[1756460535161,73.37708131,206.8,206.75,0.03236022]
[1756460535361,7.75,206.79,206.75,0.03236022]
[1756460535664,73.37708131,206.8,206.75,0.03236022]
[1756460536364,7.75,206.79,206.75,0.03236022]
[1756460536568,73.37708131,206.8,206.75,0.03236022]
[1756460536760,7.75,206.79,206.75,0.03236022]
[1756460537565,73.37708131,206.8,206.75,0.03236022]
[1756460538460,7.75,206.79,206.75,0.03236022]
[1756460538660,73.37708131,206.8,206.75,0.03236022]
[1756460539256,7.75,206.79,206.75,0.03236022]
[1756460539661,7.75,206.79,206.7,4.04941771]
[1756460539662,7.75,206.77,206.7,4.04941771]
[1756460539861,7.75,206.77,206.68,4.04941771]
[1756460540062,7.75,206.77,206.66,5.39922361]
[1756460540063,7.75,206.77,206.69,5.7586913]
[1756460540272,78.86,206.76,206.71,11.44941771]
[1756460540565,86.61,206.76,206.72,1.70887513]
[1756460540767,86.61,206.76,206.71,7.4]
[1756460540967,86.6410659,206.76,206.72,1.70878522]
[1756460541167,86.6410659,206.76,206.71,7.4]
[1756460541369,86.6410659,206.76,206.72,1.70887298]
[1756460541574,86.6410659,206.76,206.73,1.70877616]
[1756460541867,86.6410659,206.76,206.71,11.44941771]
[1756460542068,86.6410659,206.76,206.72,1.70873957]
[1756460542269,7.75,206.75,206.73,1.70873957]
[1756460542470,7.75,206.75,206.71,11.44941771]
[1756460542671,7.75,206.75,206.72,1.70927046]
[1756460542868,7.75,206.75,206.73,1.70927046]
[1756460543165,7.75,206.75,206.71,11.44941771]
[1756460543371,78.8910659,206.76,206.74,11.44941771]
[1756460543572,78.8910659,206.76,206.75,1.70851361]
[1756460544668,78.8910659,206.76,206.75,16.96017989]
[1756460545764,78.8910659,206.76,206.75,9.56017989]
[1756460546474,78.8910659,206.76,206.75,5.51076218]
[1756460547169,78.8910659,206.76,206.75,3.80224857]
[1756460547565,78.8910659,206.76,206.75,5.50382171]
[1756460548072,86.6410659,206.76,206.75,3.80224857]
[1756460548273,93.84812714,206.76,206.75,3.80224857]
[1756460548981,14.95706124,206.73,206.71,4.04941771]
[1756460549176,7.75,206.72,206.71,4.04941771]
[1756460549375,14.95706124,206.7,206.64,5.39922361]
[1756460549576,131.97,206.69,206.65,1.7043975]
[1756460549776,7.75,206.68,206.66,1.7043975]
[1756460550076,14.95706124,206.67,206.62,7.4]
[1756460550285,7.20706124,206.67,206.63,1.70505926]
[1756460550476,7.75,206.66,206.64,1.70505926]
[1756460550675,7.75,206.66,206.65,1.70505926]
[1756460551876,7.75,206.66,206.61,5.39922361]
[1756460551877,7.75,206.66,206.6,5.39922361]
[1756460552182,7.75,206.66,206.59,5.39922361]
[1756460552582,0.03279323,206.65,206.59,5.39922361]
[1756460552783,124.22,206.64,206.59,12.79922361]
[1756460554181,131.97,206.64,206.59,12.79922361]
[1756460555686,7.75,206.63,206.59,5.39922361]
[1756460555884,7.75,206.63,206.54,5.39922361]
[1756460556685,0.03458743,206.61,206.54,5.39922361]
[1756460557287,0.03458743,206.61,206.54,13.04922361]
[1756460557482,18.85458743,206.61,206.55,13.04922361]
[1756460557894,18.82,206.61,206.55,13.04922361]
[1756460558392,0.031974,206.6,206.56,7.65]
[1756460558688,0.031974,206.6,206.55,5.39922361]
[1756460558893,0.031974,206.6,206.56,7.65]
[1756460559087,0.031974,206.6,206.55,5.39922361]
[1756460559493,0.031974,206.6,206.56,7.65]
[1756460559689,0.031974,206.6,206.55,5.39922361]
[1756460559889,0.031974,206.6,206.56,7.65]
[1756460560091,0.031974,206.6,206.54,5.39922361]
[1756460560996,0.031974,206.6,206.54,13.04922361]
[1756460563594,7.18,206.59,206.51,5.39922361]
[1756460563796,7.18,206.56,206.52,1.71984507]
[1756460563995,7.18,206.56,206.46,5.39922361]
[1756460564189,7.18,206.56,206.47,1.71971256]
[1756460564388,7.18,206.56,206.48,1.71971256]
[1756460564589,7.21157978,206.53,206.44,7.65]
[1756460564795,72.84,206.52,206.45,1.7194997]
[1756460564992,72.84,206.52,206.46,1.7194997]
[1756460565194,7.18,206.51,206.47,1.7194997]
[1756460565394,7.18,206.51,206.45,1.71786002]
[1756460565599,7.18,206.51,206.46,1.71786002]
[1756460565794,7.18,206.51,206.45,1.71793392]
[1756460565996,7.18,206.51,206.44,7.65]
[1756460566795,7.18,206.51,206.44,9.36817518]
[1756460566996,7.18,206.51,206.44,7.65]
[1756460567197,7.18,206.51,206.45,1.71817518]
[1756460567396,7.18,206.51,206.44,7.65]
[1756460567597,7.18,206.51,206.44,9.36817518]
[1756460567799,7.18,206.51,206.44,7.65]
[1756460567998,7.18,206.51,206.44,9.36817518]
[1756460568200,0.03157978,206.53,206.44,7.65]
[1756460568396,0.03157978,206.53,206.45,1.71402481]
[1756460568701,0.03157978,206.53,206.46,9.36402481]
[1756460568904,0.03157978,206.53,206.47,1.71402481]
[1756460569103,0.03157978,206.53,206.49,7.65]
[1756460569299,0.03157978,206.53,206.47,7.65]
[1756460569499,0.03157978,206.53,206.49,7.65]
[1756460570103,0.03157978,206.53,206.47,7.65]
[1756460570302,0.03157978,206.53,206.48,1.71402481]
[1756460570501,0.03157978,206.53,206.47,7.65]
[1756460570702,0.03157978,206.53,206.48,1.71402481]
[1756460570901,0.03157978,206.53,206.46,1.71402481]
[1756460571109,0.03157978,206.53,206.47,9.36402481]
[1756460571309,0.03157978,206.53,206.48,1.71402481]
[1756460571506,0.03157978,206.53,206.45,7.11324842]
[1756460571703,0.03157978,206.53,206.46,9.36402481]
[1756460572102,0.03157978,206.53,206.46,7.65]
[1756460572512,7.21157978,206.53,206.46,1.71402481]
[1756460572705,19.23880129,206.53,206.43,1.71402481]
[1756460572907,19.23880129,206.53,206.41,1.71402481]
[1756460573308,19.20722151,206.53,206.41,1.71402481]
[1756460573709,0.0367702,206.49,206.41,1.71402481]
[1756460574410,0.0367702,206.49,206.4,7.65]
[1756460574614,12.06399171,206.49,206.4,9.36402481]
[1756460574815,12.06399171,206.49,206.4,7.65]
[1756460575118,12.06399171,206.49,206.4,9.36402481]
[1756460575406,12.06399171,206.49,206.4,7.65]
[1756460575814,85.14399171,206.49,206.4,9.36402481]
[1756460576012,12.06399171,206.49,206.4,9.36402481]
[1756460576211,99.76399171,206.49,206.4,9.36402481]
[1756460578213,12.06399171,206.49,206.4,9.36402481]
[1756460578411,12.06399171,206.49,206.42,7.65]
[1756460579314,0.0367702,206.49,206.42,7.65]
[1756460580515,0.0367702,206.49,206.44,7.65]
[1756460580711,0.0367702,206.49,206.43,7.65]
[1756460581312,0.0367702,206.49,206.4,1.71347502]
[1756460581511,7.22712915,206.48,206.4,1.71347502]
[1756460582620,7.22712915,206.48,206.39,7.65]
[1756460583214,7.22712915,206.48,206.39,9.36347502]
[1756460583414,7.22712915,206.48,206.39,7.65]
[1756460584016,7.2167702,206.49,206.39,7.65]
[1756460584220,14.44389935,206.49,206.39,9.36347502]
[1756460584517,14.44389935,206.49,206.39,7.65]
[1756460584814,14.44389935,206.49,206.39,9.36347502]
[1756460585114,14.44389935,206.49,206.39,7.65]
[1756460585414,20.9367702,206.49,206.41,7.65]
[1756460585620,20.9367702,206.49,206.41,9.33999819]
[1756460585819,20.9367702,206.49,206.41,7.65]
[1756460586019,20.9367702,206.49,206.42,1.68999819]
[1756460586319,0.0367702,206.49,206.43,7.65]
[1756460586515,0.0367702,206.49,206.44,1.68999819]
[1756460586710,0.0367702,206.49,206.43,7.61]
[1756460586910,0.0367702,206.49,206.45,7.61]
[1756460587818,0.0367702,206.49,206.45,1.68999819]
[1756460588023,0.0367702,206.49,206.43,7.61]
[1756460588224,0.0367702,206.49,206.44,1.68999819]
[1756460588415,0.0367702,206.49,206.43,7.61]
[1756460588614,0.0367702,206.49,206.44,1.69130048]
[1756460588820,0.0367702,206.49,206.45,9.30130048]
[1756460589120,0.0367702,206.49,206.43,9.30130059]
[1756460589419,0.0367702,206.49,206.44,1.69130059]
[1756460589619,0.0367702,206.49,206.46,7.61]
[1756460589820,0.0367702,206.49,206.46,9.30130059]
[1756460590019,0.0367702,206.49,206.46,7.61]
[1756460590321,0.0367702,206.49,206.47,9.30130059]
[1756460590514,0.0367702,206.49,206.48,9.30130059]
[1756460591916,0.0367702,206.49,206.48,14.7005242]
[1756460592324,333.09,206.64,206.49,7.61]
[1756460592518,333.09,206.64,206.54,7.61]
[1756460592716,333.09,206.64,206.55,1.69130059]
[1756460592915,7.22712915,206.62,206.56,1.69130059]
[1756460593224,7.91,206.58,206.52,5.38704524]
[1756460593418,7.22712915,206.59,206.53,1.69738402]
[1756460593419,15.13712915,206.59,206.53,1.69738402]
[1756460593619,15.13712915,206.59,206.52,5.38704524]
[1756460593620,7.91,206.58,206.57,0.03206537]
[1756460599519,7.91,206.58,206.57,1.73341723]
[1756460599725,7.91,206.58,206.57,0.03206537]
[1756460601321,132.09,206.59,206.57,0.03206537]
[1756460601523,7.91,206.58,206.57,0.03206537]
[1756460602228,124.18,206.59,206.57,0.03206537]
[1756460602423,7.91,206.59,206.57,0.03206537]
[1756460602623,132.07,206.58,206.57,0.03206537]
[1756460603216,7.91,206.7,206.58,7.61]
[1756460603421,7.91,206.7,206.61,5.38704524]
[1756460603625,124.14,206.69,206.62,7.08945769]
[1756460603826,7.91,206.75,206.64,7.61]
[1756460604024,124.14,206.74,206.65,1.70241245]
[1756460604322,7.91,206.73,206.64,7.61]
[1756460604621,7.91,206.73,206.65,1.70127246]
[1756460604826,7.91,206.73,206.67,0.03217546]
[1756460607433,325.36,206.76,206.68,1.69889132]
[1756460607634,124.1,206.75,206.69,1.69889132]
[1756460607827,7.91,206.74,206.7,1.69889132]
[1756460608026,7.91,206.74,206.67,7.64217546]
[1756460608228,7.91,206.74,206.68,1.69880125]
[1756460608428,7.91,206.74,206.69,1.69880125]
[1756460608623,7.91,206.74,206.67,7.64217546]
[1756460608928,7.91,206.74,206.68,1.69742959]
[1756460609124,7.91,206.74,206.67,0.03217546]
[1756460611531,325.36,206.76,206.68,9.30583898]
[1756460611731,124.06,206.75,206.69,5.73890099]
[1756460611933,124.06,206.75,206.7,1.69583898]
[1756460612130,124.06,206.75,206.69,1.69583898]
[1756460612632,124.06,206.75,206.7,7.61]
[1756460612833,124.06,206.75,206.69,9.30583898]
[1756460613234,124.06,206.75,206.69,7.61]
[1756460614136,7.91,206.74,206.67,0.03217546]
[1756460615331,15.12082646,206.74,206.67,0.03217546]
[1756460617940,14.57082646,206.68,206.67,0.03217546]
[1756460618141,138.57082646,206.68,206.67,0.03217546]
[1756460618531,131.36,206.68,206.67,0.03217546]
[1756460619843,7.36,206.68,206.67,0.03217546]
[1756460620038,131.36,206.68,206.67,0.03217546]
[1756460620342,124.0,206.68,206.67,0.03217546]
[1756460620944,131.36,206.68,206.67,0.03217546]
[1756460624140,124.0,206.68,206.67,0.03217546]
[1756460624344,124.0,206.68,206.67,7.50217546]
[1756460624739,124.0,206.68,206.67,0.03217546]
[1756460625136,124.0,206.68,206.67,7.50217546]
[1756460625440,123.94,206.69,206.67,7.50217546]
[1756460625638,123.94,206.69,206.67,0.03217546]
[1756460627742,131.3,206.69,206.67,0.03217546]
[1756460627945,7.36,206.68,206.62,1.68425878]
[1756460628140,7.36,206.65,206.59,1.68425878]
[1756460628339,7.21082646,206.63,206.57,4.04306201]
[1756460628549,7.36,206.61,206.57,1.68425878]
[1756460629344,7.36,206.6,206.56,11.51306201]
[1756460629546,123.92,206.59,206.57,1.68839461]
[1756460629848,123.92,206.59,206.57,1.68843418]
[1756460630146,123.92,206.59,206.56,4.04306201]
[1756460630345,123.92,206.59,206.57,1.68936406]
[1756460630542,123.92,206.59,206.56,4.04306201]
[1756460630742,131.28,206.59,206.57,1.68936406]
[1756460630938,131.28,206.59,206.56,1.68942419]
[1756460631144,131.28,206.59,206.57,1.68942396]
[1756460631444,123.92,206.59,206.55,4.04306201]
[1756460631748,123.92,206.59,206.56,13.20322389]
[1756460631945,123.92,206.59,206.57,1.69016188]
[1756460632152,123.92,206.59,206.56,4.04306201]
[1756460632349,123.92,206.59,206.57,1.69071585]
[1756460632648,131.28,206.59,206.56,4.04306201]
[1756460632848,131.28,206.59,206.57,1.69071596]
[1756460633048,131.28,206.59,206.56,4.04306201]
[1756460633249,131.28,206.59,206.57,1.69072236]
[1756460633448,131.28,206.59,206.55,4.04306201]
[1756460633449,7.36,206.58,206.55,4.04306201]
[1756460633748,14.57082646,206.57,206.51,4.04306201]
[1756460633938,7.36,206.55,206.52,1.69171207]
[1756460634142,7.36,206.55,206.5,4.04306201]
[1756460634342,7.36,206.55,206.51,1.692076]
[1756460634552,7.36,206.55,206.52,1.692076]
[1756460634751,7.36,206.55,206.51,4.04306201]
[1756460635051,7.36,206.55,206.52,1.69202401]
[1756460635246,7.36,206.55,206.53,1.69233381]
[1756460635447,7.36,206.55,206.51,4.04306201]
[1756460635448,0.03421784,206.56,206.55,7.47]
[1756460635648,0.03421784,206.56,206.55,13.20529302]
[1756460636048,0.03421784,206.56,206.55,9.16223101]
[1756460639751,0.03421784,206.56,206.55,9.64223101]
[1756460639954,0.03421784,206.56,206.55,15.02927625]
[1756460640850,7.36,206.68,206.56,7.47]
[1756460641149,56.52,206.67,206.61,11.51814799]
[1756460641350,56.52,206.67,206.62,9.16227161]
[1756460641549,56.52,206.67,206.63,1.69227161]
[1756460641755,56.52,206.67,206.62,7.47]
[1756460642057,56.52,206.67,206.63,1.69253041]
[1756460642252,56.52,206.67,206.64,1.69253041]
[1756460642454,56.52,206.67,206.62,11.5523783]
[1756460642756,63.88,206.67,206.63,1.69274986]
[1756460643056,7.21082646,206.67,206.64,1.69274986]
[1756460643253,7.36,206.66,206.62,0.03423031]
[1756460646355,7.39579932,206.66,206.57,1.69408839]
[1756460646550,7.39579932,206.66,206.55,4.04814799]
[1756460646754,7.36,206.66,206.56,1.69440486]
[1756460646956,7.36,206.66,206.57,1.69440486]
[1756460647159,7.36,206.66,206.55,4.04814799]
[1756460647351,7.36,206.66,206.56,1.69464487]
[1756460647547,7.49,206.63,206.57,1.69464487]
[1756460647747,123.84,206.62,206.55,4.04814799]
[1756460647951,123.84,206.62,206.56,1.69464498]
[1756460648158,7.49,206.61,206.57,1.69464498]
[1756460648361,7.49,206.61,206.55,4.04814799]
[1756460648653,7.49,206.61,206.56,1.69483159]
[1756460648853,7.49,206.61,206.51,4.04814799]
[1756460649056,7.49,206.61,206.52,1.69519388]
[1756460649256,7.49,206.61,206.51,4.04814799]
[1756460649563,7.49,206.61,206.52,1.69458996]
[1756460649758,7.49,206.58,206.51,4.04814799]
[1756460649959,7.49,206.58,206.52,1.69458996]
[1756460650159,7.49,206.58,206.51,4.04814799]
[1756460650353,7.49,206.58,206.52,1.69408057]
[1756460650657,7.49,206.58,206.5,4.04814799]
[1756460650857,7.49,206.58,206.51,1.69408057]
[1756460651060,7.49,206.58,206.5,4.04814799]
[1756460651259,7.49,206.58,206.51,1.69395101]
[1756460651458,7.49,206.58,206.52,1.69395101]
[1756460651659,7.49,206.58,206.5,11.71814799]
[1756460651958,7.49,206.58,206.51,1.69362298]
[1756460652158,7.49,206.58,206.52,1.69362298]
[1756460652357,7.49,206.58,206.5,11.71814799]
[1756460652558,7.49,206.58,206.51,1.69322949]
[1756460652758,7.49,206.58,206.52,1.69322949]
[1756460652958,7.49,206.58,206.5,11.71814799]
[1756460653157,7.49,206.58,206.51,1.69321716]
[1756460653358,7.49,206.58,206.52,1.69321716]
[1756460653559,7.49,206.58,206.5,11.71814799]
[1756460653859,7.49,206.58,206.51,1.69308724]
[1756460654055,0.03690489,206.59,206.52,1.69308724]
[1756460654257,0.03690489,206.59,206.53,9.36304875]
[1756460654459,0.03690489,206.59,206.55,7.67]
[1756460654652,0.03690489,206.59,206.54,4.04814799]
[1756460654952,12.02969706,206.67,206.56,7.67]
[1756460654953,123.8,206.65,206.56,7.67]
[1756460655158,0.0317259,206.59,206.56,7.67]
[1756460655561,0.0317259,206.59,206.55,4.04814799]
[1756460655750,0.0317259,206.59,206.56,5.74092608]
[1756460655951,0.0317259,206.59,206.58,7.67]
[1756460656361,0.0317259,206.59,206.58,9.36285219]
[1756460656559,0.0317259,206.59,206.58,13.41100018]
[1756460657357,0.0317259,206.59,206.58,9.36285219]
[1756460658360,123.8,206.67,206.58,9.36285219]
[1756460658361,123.8,206.67,206.58,7.57038285]
[1756460658557,123.8,206.67,206.61,4.05201467]
[1756460658763,123.8,206.67,206.62,9.36285219]
[1756460658956,123.8,206.67,206.62,7.67]
[1756460659362,123.8,206.67,206.63,1.6942348]
[1756460659560,123.8,206.67,206.64,9.3642348]
[1756460659756,123.8,206.67,206.64,7.67]
[1756460660262,123.8,206.67,206.65,1.69409964]
[1756460660456,123.8,206.67,206.64,7.67]
[1756460660655,123.8,206.67,206.65,1.69448476]